Cogmind - Beta 13 @@@ ROGUE MODE // 2024.03.14 @ 17:04:01 Player: Cmdr.Laserstrahl Result: Destroyed by G-73 Enforcer with Phase Gun Performance ------------- Evolutions (6) 3000 Regions Visited (10) 2000 Robots Destroyed (190) 950 Value Destroyed (7171) 7171 Prototype IDs (7) 140 Alien Tech Used (0) 0 Bonus (372) 372 TOTAL SCORE: 13633 Bonus ------- High Alert Combat Kills 586 Follower Combat Kills 219 Friendly Fire -433 Cogmind --------- Core Integrity 0/1150 Matter 85/300 Energy 93/100 System Corruption 25% Temperature Warm (141) Movement Core (300) Ox5 Location -4/Factory Parts ------- > --- POWER (2) -------- (None) > --- PROPULSION (4) --- (None) > --- UTILITY (10) ----- Advanced Signal Interpreter Reflective Plating Reflective Plating > --- WEAPON (3) ------- Plasma Rifle KE Penetrator > --- INVENTORY (5) ---- Improved Cryofiber Web Advanced Cooling System Peak State ------------ > --- POWER ------------ Fusion Compressor Reinforced Fission Core > --- PROPULSION ------- Improved Treads Medium Treads Improved Medium Treads Improved Medium Treads > --- UTILITY ---------- Improved Cooling System Advanced Coolant Injector Large Storage Unit Compact Battery Advanced Targeting Computer Heavy Servo Lattice Improved Medium Armor Plating Improved Medium Armor Plating Advanced Thermal Shield Advanced Shield Generator > --- WEAPON ----------- Wave Gun Matter Neutralizer KE Penetrator > --- INVENTORY -------- Light Antimatter Reactor Armored Medium Treads Wheel Improved Cryofiber Web Advanced Cooling System Advanced Signal Interpreter Matter Filter Kinecellerator Gauss Rifle KE Penetrator Magnetic Acceleration Cannon Grenade Launcher Precision Rocket Launcher Powered Hammer Power Sword [Rating: 98] Favorites ----------- Power Heavy Ion Engine Engine Heavy Ion Engine Power Core Reinforced Fission Core Reactor Antimatter Reactor Propulsion Armored Treads Treads Armored Treads Leg Flexi-carbon Leg Wheel Compact Wheel Flight Unit VTOL Module Utility Large Storage Unit Device Advanced Heat Sink Storage Large Storage Unit Processor Advanced Targeting Computer Hackware Hacking Suite Protection Improved Medium Armor Plating Weapon Assault Cannon Energy Gun Improved Medium Laser Energy Cannon Neutron Cannon Ballistic Gun Gauss Rifle Ballistic Cannon Assault Cannon Launcher Grenade Launcher Special Weapon Plasma Cutter Impact Weapon Powered Hammer Slashing Weapon Power Sword Build | -11 -10 -9 -8 -7 -6 -6 -6 -5 -5 -4 ------- Run | Yrd Mat Mat Mat Fac Fac Was Fac Fac Ext Fac Slots Evolved 12 | . . 2 2 2 2 . . 2 . 2 Power 1 | . . . . . . . . . . 1 Propulsion 2 | . . 1 . 1 . . . . . . Utility 8 | . . 1 2 . 2 . . 2 . 1 Weapon 1 | . . . . 1 . . . . . . Parts Attached 210 | 7 5 25 9 4 2 8 26 56 24 44 Power 20 | 1 . 4 1 . . 2 1 7 . 4 Engine 9 | 1 . 4 1 . . 1 . 2 . . Core 7 | . . . . . . . 1 4 . 2 Reactor 4 | . . . . . . 1 . 1 . 2 Propulsion 52 | 3 . 7 3 2 . 3 4 17 8 5 Treads 24 | 1 . 4 3 2 . 2 4 . 4 4 Leg 10 | . . 3 . . . . . 7 . . Wheel 17 | 2 . . . . . 1 . 10 4 . Hover . | . . . . . . . . . . . Flight 1 | . . . . . . . . . . 1 Utility 69 | 1 2 6 3 . 2 2 9 19 8 17 Device 32 | . 1 3 . . 1 1 3 10 5 8 Storage 3 | 1 1 . . . . . . . . 1 Processor 8 | . . . 1 . . . 1 4 . 2 Hackware 3 | . . . . . 1 . . 1 . 1 Protection 23 | . . 3 2 . . 1 5 4 3 5 Artifact . | . . . . . . . . . . . Weapon 69 | 2 3 8 2 2 . 1 12 13 8 18 Energy Gun 16 | 1 2 4 1 . . . 1 3 2 2 Energy Cannon 6 | . . . . . . 1 2 2 . 1 Ballistic Gun 17 | 1 . 1 . . . . 1 3 3 8 Ballistic Cannon 9 | . . 1 . 2 . . 5 . 1 . Launcher 12 | . 1 2 . . . . 1 3 2 3 Special Weapon 1 | . . . 1 . . . . . . . Impact Weapon 1 | . . . . . . . . . . 1 Slashing Weapon 7 | . . . . . . . 2 2 . 3 Piercing Weapon . | . . . . . . . . . . . Special Melee Weapon . | . . . . . . . . . . . Unidentified Prototypes 5 | . . 2 . . . . 1 2 . . Corrupted Parts 6 | . . . . . . . . 1 5 . System Corruption 39 | . . . . . . . . 1 38 . Parts Lost 71 | . . 1 . . . . 2 35 8 25 Power 5 | . . . . . . . . 3 . 2 Propulsion 17 | . . . . . . . . 11 3 3 Utility 26 | . . . . . . . 1 12 3 10 Weapon 23 | . . 1 . . . . 1 9 2 10 Highest Loss Streak 25 | . . 1 . . . . 1 9 4 25 To Critical Strikes . | . . . . . . . . . . . Average Slot Usage (%) 89 | . 97 98 90 92 91 76 84 89 87 90 Engine 4 | . 14 11 9 7 6 4 . 1 . . Core 2 | . . . . . . . . 3 5 9 Reactor 1 | . . . . . . . 5 . . . Treads 17 | . . 24 27 30 26 13 20 3 3 18 Leg 1 | . . 6 . . . . . 7 . . Wheel 3 | . 28 1 . . . 2 . 7 16 . Device 14 | . 11 11 9 7 12 10 8 21 25 24 Storage 7 | . 14 11 9 7 6 6 6 5 5 6 Processor 5 | . . . 7 7 6 6 6 7 5 4 Hackware 1 | . . . . . 5 6 1 4 . 1 Protection 8 | . . 9 10 7 6 6 12 6 8 8 Energy Gun 4 | . 15 9 6 7 6 2 . 4 3 2 Energy Cannon 1 | . . . . . . 1 1 3 . 2 Ballistic Gun 2 | . 10 . . . . . . 2 4 8 Ballistic Cannon 6 | . . 6 9 15 13 13 8 . 2 . Launcher 1 | . 2 5 2 . . . . . 2 . Slashing Weapon 2 | . . . . . . . 8 3 . . Naked Turns . | . . . . . . . . . . . Heaviest Build 115 | 12 30 42 55 59 59 97 97 92 115 110 Greatest Support 140 | 26 26 60 60 80 80 140 140 96 106 111 Greatest Overweight (x) 6 | . 1 1 . . . 2 4 6 3 2 Average Overweight (x) . | . . . . . . . . 1 1 . Largest Inventory Capacity 15 | 8 15 15 15 15 15 15 15 15 15 15 Average Capacity 14 | 6 13 15 15 15 15 15 15 15 15 14 Most Carried 15 | 4 15 15 15 15 15 15 15 15 15 15 Average Carried 14 | 1 9 14 14 14 14 14 14 13 12 14 Final Capacity 15 | 8 15 15 15 15 15 15 15 15 15 5 Final Carried 15 | 4 15 15 15 15 15 15 15 15 15 2 Class Distribution -------------------- 32% | Mutant 20% | Scavenger-Tank 18% | Gunner 9% | Scavenger-Mutant 7% | Tank 7% | Scavenger-Gunner 3% | Gladiator Dominant Class ---------------- Mutant | -10/Materials Mutant | -9/Materials Mutant | -8/Materials Gunner | -7/Factory Gunner | -6/Factory Gunner | -6/Waste Mutant | -6/Factory Tank | -5/Factory Scavenger-Tank | -5/Extension Scavenger-Tank | -4/Factory Resources | -11 -10 -9 -8 -7 -6 -6 -6 -5 -5 -4 ----------- Run | Yrd Mat Mat Mat Fac Fac Was Fac Fac Ext Fac Matter Collected 5574 | 262 68 557 388 385 50 150 800 841 724 1349 Remotely . | . . . . . . . . . . . Salvage Created 8617 | . 319 1207 597 533 119 447 893 1937 978 1587 Parts 402 | . 15 87 18 33 3 5 40 86 45 70 Haulers Intercepted 9 | . . 3 1 1 . . 2 1 1 . Recyclers Shooed 17 | . 1 2 5 . . . 1 3 2 3 Parts Field Recycled . | . . . . . . . . . . . Retrieved Matter . | . . . . . . . . . . . Parts Self-Destructed . | . . . . . . . . . . . Prevented . | . . . . . . . . . . . Kills | -11 -10 -9 -8 -7 -6 -6 -6 -5 -5 -4 ------- Run | Yrd Mat Mat Mat Fac Fac Was Fac Fac Ext Fac Combat Hostiles Destroyed 120 | . 6 28 9 10 . 1 14 20 9 23 Melee 14 | . . . . . . . 5 8 . 1 Guns 38 | . 6 8 2 3 . . . 5 5 9 Cannons 43 | . . 9 7 5 . 1 9 6 2 4 AOE 19 | . . 11 . 2 . . . . 1 5 Classes Destroyed 20 | . 2 9 1 2 . 1 1 2 1 1 Worker 13 | . . 2 . . . . 1 3 . 7 Builder 13 | . . . . 2 . . . 2 6 3 Tunneler 3 | . . 1 . . . . . 1 1 . Hauler 9 | . . 3 1 1 . . 2 1 1 . Recycler 21 | . 1 4 3 2 1 . 1 4 3 2 Mechanic 2 | . . 1 . . . . 1 . . . Operator 1 | . . . . . . . 1 . . . Watcher 8 | . . 2 2 2 . . . . . 2 Swarmer 19 | . . 11 . 4 . . . . . 4 Grunt 41 | . 6 10 6 3 . . 4 2 3 7 Brawler 2 | . . . . . . . . . . 2 Duelist 2 | . . 1 . . . . . . . 1 Protector 1 | . . 1 . . . . . . . . Sentry 16 | . . 5 2 1 . . 2 1 2 3 Specialist 4 | . . . . . . . . 4 . . Hunter 10 | . . . 1 1 . . 2 4 2 . Programmer 21 | . . . . 1 . . 6 8 . 6 Heavy 1 | . . . . . . . . 1 . . Behemoth 2 | . . . . . . . . . 2 . Compactor 1 | . . . . . . 1 . . . . Best Kill Streak 8 | . 2 7 4 6 1 1 2 5 8 7 Combat Bots Only 6 | . 2 5 4 5 . 1 2 3 3 6 Max Kills in Single Turn 5 | . 1 5 2 2 1 1 1 4 2 4 Gunslinging . | . . . . . . . . . . . Exploded 3 | . . 3 . 1 . . . . 1 3 Melee 1 | . . . . . . . 1 1 . 1 Uniques/NPCs Destroyed . | . . . . . . . . . . . Combat | -11 -10 -9 -8 -7 -6 -6 -6 -5 -5 -4 -------- Run | Yrd Mat Mat Mat Fac Fac Was Fac Fac Ext Fac Hostile Shots Fired 1144 | . 30 64 60 75 . 1 178 327 77 332 Missed 312 | . 9 17 21 24 . . 42 82 23 94 Damage Taken 15428 | . 306 671 620 720 . 31 2609 5121 1204 4146 Core 2811 | . 104 48 67 71 . . 710 549 107 1155 Absorbed by Shields 720 | . . . . . . . . 107 173 440 Redirected to Shielding 52 | . . . . . . . . 52 . . Ignored by Resistances 524 | . . . . . . . 43 204 . 277 Core Remaining (%) 67 | 100 58 88 87 89 . . 16 . 34 . Volleys Fired 435 | 3 28 59 44 32 3 7 73 59 45 82 Largest 3 | 2 2 2 2 3 3 3 3 3 3 3 Hottest 343 | 60 85 100 100 144 144 163 167 343 155 219 Shots Fired 917 | 6 55 106 74 92 9 20 122 146 93 194 Gun 473 | 6 54 59 28 29 3 5 6 82 62 139 Cannon 396 | . . 39 41 63 6 15 116 55 19 42 Launcher 44 | . 1 8 1 . . . . 9 12 13 Special 4 | . . . 4 . . . . . . . Kinetic 511 | 3 27 43 41 63 6 14 109 45 55 105 Thermal 332 | 3 27 25 32 29 3 6 13 92 26 76 Explosive 37 | . 1 8 1 . . . . 2 12 13 Electromagnetic 37 | . . 30 . . . . . 7 . . Robot Hit Streak 18 | 1 6 12 11 10 10 18 12 17 15 17 Robot Miss Streak 9 | 1 5 5 9 7 . 1 5 3 2 3 Penetration Max 1 | . . . . . . . . . 1 1 Secondary Targets 1 | . 1 . . . . . . . . . Max Gunslinging Chain 1 | . 1 . . . . . . . . . Shots Hit Robots 644 | 3 32 76 60 44 7 15 88 126 65 128 Core Hits 435 | 1 16 81 57 41 2 4 48 57 47 81 Critical Kills 5 | . . . . . . . . 1 . 4 Critical Parts Destroyed 4 | . . . . . . . . . 1 3 Critical Strikes 29 | . 1 3 1 1 . . 6 5 3 9 Burn 6 | . 1 2 1 . . . . . . 2 Meltdown 5 | . . . . . . . . 1 . 4 Destroy 2 | . . . . . . . . . 1 1 Blast 7 | . . . . 1 . . 4 . 2 . Corrupt 1 | . . 1 . . . . . . . . Smash 2 | . . . . . . . . . . 2 Sever 6 | . . . . . . . 2 4 . . Melee Attacks 63 | . . . . . . . 21 38 . 4 Impact 4 | . . . . . . . . . . 4 Slashing 59 | . . . . . . . 21 38 . . Piercing . | . . . . . . . . . . . Sneak Attacks 5 | . . . . . . . 4 1 . . Combat Hostiles 2 | . . . . . . . 2 . . . Follow-up Attacks 6 | . . . . . . . 2 4 . . Damage Inflicted 21459 | 21 381 2341 1328 1236 146 333 2582 4301 3072 5718 Guns 6421 | 21 381 583 344 251 50 86 14 1195 1051 2445 Cannons 7447 | . . 600 915 643 96 247 1680 1188 1090 988 Explosions 5101 | . . 1155 37 342 . . . 506 931 2130 Melee 2443 | . . . . . . . 888 1407 . 148 Ramming 15 | . . 3 . . . . . 5 . 7 Kinetic 8249 | 21 120 626 915 643 96 222 1532 532 1585 1957 Thermal 7406 | . 261 958 376 505 50 111 162 1995 556 2432 Explosive 2740 | . . 484 37 . . . . 152 931 1136 Electromagnetic 606 | . . 270 . 88 . . . 210 . 38 Impact 148 | . . . . . . . . . . 148 Slashing 2295 | . . . . . . . 888 1407 . . Piercing . | . . . . . . . . . . . Highest Corruption 52 | . . . . 3 . . 1 14 52 25 Average Corruption 7 | . . . . 2 . . 1 9 20 5 Corruption Purged . | . . . . . . . . . . . Corruption Blocked . | . . . . . . . . . . . Effects 91 | . . . . 4 . . 5 33 28 21 Message Errors 14 | . . . . 2 . . 2 5 5 . Matter Fused 19 | . . . . . . . 1 8 5 5 Heat Flow Errors 11 | . . . . 2 . . . 3 3 3 Energy Discharges 14 | . . . . . . . 2 6 4 2 Parts Rejected 2 | . . . . . . . . . . 2 Data Loss (minor) 9 | . . . . . . . . 3 3 3 Data Loss (major) 2 | . . . . . . . . 1 . 1 Misfires 5 | . . . . . . . . 1 2 2 Alerts 2 | . . . . . . . . . 1 1 Misdirections 5 | . . . . . . . . 2 1 2 Weapon Failures 8 | . . . . . . . . 4 4 . Overload Shots 6 | . . . . . . . . 6 . . Overflow Damage 843 | . . 157 . 16 8 . 59 111 148 344 Projectiles 284 | . . . . 9 8 . 27 40 88 112 Explosions 392 | . . 157 . 7 . . . 8 60 160 Melee 167 | . . . . . . . 32 63 . 72 Knockbacks 79 | . . 15 24 18 1 . 16 2 2 1 Impact 1 | . . . . . . . . . . 1 Kinetic 76 | . . 15 24 18 1 . 15 2 1 . Secondary 2 | . . . . . . . 1 . 1 . Self-Inflicted Damage 253 | . . 115 . 4 . . . 33 101 . Shots 7 | . . 3 . 1 . . . 1 2 . Rammed 2 | . . 1 . . . . . 1 . . Targets Rammed 3 | . . 1 . . . . . 1 . 1 Kicked . | . . . . . . . . . . . Crushed 1 | . . . . . . . . . . 1 Highest Temperature 736 | 20 82 12 16 214 . 123 736 199 198 197 Average Temperature 112 | 15 31 3 6 38 . 89 210 96 122 87 Received Heat Transfer 2596 | . 156 159 333 99 . . 333 654 265 597 Effects 22 | . . . . . . . 22 . . . Shutdowns 4 | . . . . . . . 4 . . . Energy Bleed 1 | . . . . . . . 1 . . . Interference 2 | . . . . . . . 2 . . . Matter Decay 4 | . . . . . . . 4 . . . Short Circuit 2 | . . . . . . . 2 . . . Damage (minor) 1 | . . . . . . . 1 . . . Damage (major) 3 | . . . . . . . 3 . . . Damage (core) 5 | . . . . . . . 5 . . . Siege Activations . | . . . . . . . . . . . Robots Corrupted . | . . . . . . . . . . . Combat Hostiles . | . . . . . . . . . . . Parts Fried 5 | . . . . 1 . . . . 4 . Impact Corruptions 4 | . . . . . . . . . 1 3 Robots Melted 6 | . . . . . . . . 1 1 4 Combat Hostiles 5 | . . . . . . . . 1 1 3 Parts Melted 14 | . . . . 1 . . 1 6 1 5 Heat Transferred 9620 | . 705 1377 925 755 111 222 222 1875 1199 2229 Parts Sabotaged . | . . . . . . . . . . . Parts Stolen . | . . . . . . . . . . . Parts Stripped . | . . . . . . . . . . . Power Chain Reactions 9 | . . 4 . 1 . . . 3 . 1 Alert | -11 -10 -9 -8 -7 -6 -6 -6 -5 -5 -4 ------- Run | Yrd Mat Mat Mat Fac Fac Was Fac Fac Ext Fac Peak Influence 813 | . 193 735 626 582 269 94 234 397 403 813 Initial 310 | . . 81 310 205 263 94 65 27 117 197 Average 262 | . 89 432 430 416 266 94 74 188 238 367 Maximum Alert Level 3 | . . 3 2 2 1 . 1 1 2 3 Low Security (%) 45 | 100 100 15 . . . 100 98 56 48 18 Level 1 29 | . . 27 27 41 100 . 1 43 46 39 Level 2 22 | . . 42 72 58 . . . . 4 28 Level 3 3 | . . 14 . . . . . . . 13 Level 4 . | . . . . . . . . . . . Level 5 . | . . . . . . . . . . . High Security . | . . . . . . . . . . . Max Security . | . . . . . . . . . . . Squads Dispatched 35 | . . 2 2 2 . . 8 12 2 7 Investigation 3 | . . 1 1 . . . 1 . . . Extermination 12 | . . . . 1 . . 5 4 . 2 Reinforcement 15 | . . . 1 1 . . 2 7 2 2 Assault 4 | . . 1 . . . . . 1 . 2 Garrison 1 | . . . . . . . . . . 1 Intercept . | . . . . . . . . . . . Searches Triggered . | . . . . . . . . . . . Construction Impeded 7 | . . . 1 . . . . 3 2 1 Haulers Reinforced 2 | . . . . . . . 1 . . 1 Active Scanning Responses . | . . . . . . . . . . . Cargo Convoy Interrupts 1 | . . . . . . . . 1 . . Stealth | -11 -10 -9 -8 -7 -6 -6 -6 -5 -5 -4 --------- Run | Yrd Mat Mat Mat Fac Fac Was Fac Fac Ext Fac Distress Signals 14 | . 3 3 . 2 . . 1 2 1 2 Communications Jammed . | . . . . . . . . . . . Distress Signals . | . . . . . . . . . . . Times Spotted 182 | . 8 39 13 18 . 1 15 32 17 39 Peak Tracking Total 8 | . 4 6 5 5 . 1 3 5 4 8 Tactical Retreats 12 | . . 2 1 1 . . . 7 1 . Traps | -11 -10 -9 -8 -7 -6 -6 -6 -5 -5 -4 ------- Run | Yrd Mat Mat Mat Fac Fac Was Fac Fac Ext Fac Traps Triggered 6 | . 1 1 . . 1 . . 1 . 2 Indirectly 1 | . . . . . . . . 1 . . Trap Hack Attempts . | . . . . . . . . . . . Triggered . | . . . . . . . . . . . Disarmed . | . . . . . . . . . . . Reprogrammed . | . . . . . . . . . . . Reused . | . . . . . . . . . . . Traps Extracted . | . . . . . . . . . . . Installed . | . . . . . . . . . . . Triggered 1 | . . . . . . . . 1 . . Machines | -11 -10 -9 -8 -7 -6 -6 -6 -5 -5 -4 ---------- Run | Yrd Mat Mat Mat Fac Fac Was Fac Fac Ext Fac Machines Disabled 40 | . 2 3 . 16 . . 1 6 3 9 Max in Single Turn 7 | . 2 2 . 7 . . 1 2 1 3 Garrison Access 2 | . . . . . . . . 1 . 1 Machines Repaired . | . . . . . . . . . . . Machines Dismantled . | . . . . . . . . . . . Machines Sabotaged . | . . . . . . . . . . . Overloaded Fab Kills . | . . . . . . . . . . . Hacking | -11 -10 -9 -8 -7 -6 -6 -6 -5 -5 -4 --------- Run | Yrd Mat Mat Mat Fac Fac Was Fac Fac Ext Fac Machines Accessed 28 | . 2 4 3 4 . . 9 2 3 1 Terminals 22 | . 1 3 3 4 . . 6 1 3 1 Fabricators 1 | . . . . . . . 1 . . . Repair Stations 1 | . . . . . . . 1 . . . Recycling Units 2 | . 1 . . . . . 1 . . . Scanalyzers 2 | . . 1 . . . . . 1 . . Garrison Access . | . . . . . . . . . . . Total Hacks 73 | . 9 7 6 6 . . 21 19 4 1 Successful 39 | . 5 5 2 3 . . 6 16 2 . Failed 34 | . 4 2 4 3 . . 15 3 2 1 Catastrophic 9 | . . . 1 . . . 6 . 1 1 Database Lockouts . | . . . . . . . . . . . Manual 9 | . 3 . 2 . . . 4 . . . Terminals 45 | . 6 5 6 6 . . 15 2 4 1 Fabricators 2 | . . . . . . . 2 . . . Repair Stations 2 | . . . . . . . 2 . . . Recycling Units 5 | . 3 . . . . . 2 . . . Scanalyzers 19 | . . 2 . . . . . 17 . . Garrison Access . | . . . . . . . . . . . Terminal Hacks 20 | . 4 3 2 3 . . 5 1 2 . Record 1 | . 1 . . . . . . . . . Part Schematic 1 | . 1 . . . . . . . . . Prototype ID Bank 1 | . . . . . . . 1 . . . Open Door 2 | . . . . . . . . . 2 . Open DSF 2 | . . . . 1 . . . 1 . . Emergency Access Points 1 | . . . . . . . 1 . . . Scanalyzer Index 1 | . 1 . . . . . . . . . Locate Traps 3 | . . . . 1 . . 2 . . . Dispatch Records 1 | . . . 1 . . . . . . . Investigation Status 1 | . . 1 . . . . . . . . Hauler Manifests 3 | . 1 1 1 . . . . . . . Zone Layout 3 | . . 1 . 1 . . 1 . . . Fabricator Hacks . | . . . . . . . . . . . Repair Station Hacks 1 | . . . . . . . 1 . . . Scan Component 1 | . . . . . . . 1 . . . Recycling Unit Hacks 1 | . 1 . . . . . . . . . Report Inventory 1 | . 1 . . . . . . . . . Scanalyzer 17 | . . 2 . . . . . 15 . . Insert Component 8 | . . 1 . . . . . 7 . . Analyze 9 | . . 1 . . . . . 8 . . Garrison Access Hacks . | . . . . . . . . . . . Unauthorized Hacks . | . . . . . . . . . . . Terminals . | . . . . . . . . . . . Fabricators . | . . . . . . . . . . . Repair Stations . | . . . . . . . . . . . Recycling Units . | . . . . . . . . . . . Scanalyzers . | . . . . . . . . . . . Garrison Access . | . . . . . . . . . . . Data Cores Recovered . | . . . . . . . . . . . Used . | . . . . . . . . . . . Hacking Detections 23 | . 2 3 2 3 . . 9 1 2 1 Full Trace Events 2 | . . . 1 . . . 1 . . . Feedback Events . | . . . . . . . . . . . Feedback Blocked . | . . . . . . . . . . . Robot Schematics Acquired . | . . . . . . . . . . . Robots Built . | . . . . . . . . . . . Authchips . | . . . . . . . . . . . Time . | . . . . . . . . . . . Total Robot Build Rating . | . . . . . . . . . . . Part Schematics Acquired 9 | . 1 1 . . . . . 7 . . Parts Built . | . . . . . . . . . . . Authchips . | . . . . . . . . . . . Time . | . . . . . . . . . . . Total Part Build Rating . | . . . . . . . . . . . Parts Repaired . | . . . . . . . . . . . Time . | . . . . . . . . . . . Parts Recycled . | . . . . . . . . . . . Recycled Matter . | . . . . . . . . . . . Retrieved Matter . | . . . . . . . . . . . Retrieved Components . | . . . . . . . . . . . Parts Scanalyzed 8 | . . 1 . . . . . 7 . . Part Schematics Acquired 8 | . . 1 . . . . . 7 . . Parts Damaged . | . . . . . . . . . . . Bothacking | -11 -10 -9 -8 -7 -6 -6 -6 -5 -5 -4 ------------ Run | Yrd Mat Mat Mat Fac Fac Was Fac Fac Ext Fac Used RIF Installer . | . . . . . . . . . . . Robots Hacked . | . . . . . . . . . . . Non-combat . | . . . . . . . . . . . Combat . | . . . . . . . . . . . Robot Hacks Applied . | . . . . . . . . . . . Relay Couplers Released 3 | . . . . . . . . 2 . 1 Machine Destruction 3 | . . . . . . . . 2 . 1 Fabnet Peak Effective % . | . . . . . . . . . . . Robots Rewired . | . . . . . . . . . . . Allies Hacked . | . . . . . . . . . . . Hacks Repelled . | . . . . . . . . . . . Allies | -11 -10 -9 -8 -7 -6 -6 -6 -5 -5 -4 -------- Run | Yrd Mat Mat Mat Fac Fac Was Fac Fac Ext Fac Total Allies 1 | . . . . . . . . . 1 . Largest Group 1 | . . . . . . . . . 1 1 Highest-Rated Group 159 | . . . . . . . . . 159 156 Highest-Rated Ally 159 | . . . . . . . . . 159 156 Total Orders . | . . . . . . . . . . . Ally Attacks 39 | . . . . . . . . . 39 . Total Damage 1221 | . . . . . . . . . 1221 . Kills 5 | . . . . . . . . . 5 . Allies Corrupted . | . . . . . . . . . . . Allies Melted 1 | . . . . . . . . 1 . . Intel | -11 -10 -9 -8 -7 -6 -6 -6 -5 -5 -4 ------- Run | Yrd Mat Mat Mat Fac Fac Was Fac Fac Ext Fac Robot Analysis Total . | . . . . . . . . . . . Derelict Logs Recovered . | . . . . . . . . . . . Drone Launches . | . . . . . . . . . . . Drone Recoveries . | . . . . . . . . . . . Exploration | -11 -10 -9 -8 -7 -6 -6 -6 -5 -5 -4 ------------- Run | Yrd Mat Mat Mat Fac Fac Was Fac Fac Ext Fac Turns Passed 8544 | 65 320 1031 664 1037 267 383 1754 1251 588 1184 Spaces Moved 4007 | 43 190 481 296 511 150 183 726 580 316 531 Core 33 | 7 . . . . . . . . . 26 Treads 2774 | 5 . 361 296 511 150 102 726 84 37 502 Legs 225 | . . 80 . . . . . 145 . . Wheels 972 | 31 190 40 . . . 81 . 351 279 . Hover . | . . . . . . . . . . . Flight 3 | . . . . . . . . . . 3 Fastest Speed 35 | 50 90 105 160 167 167 130 160 97 100 35 Average Speed 157 | 92 102 160 168 168 167 147 193 141 120 157 Slowest Speed 480 | 160 105 190 170 170 167 167 480 240 320 320 Overloaded Moves . | . . . . . . . . . . . Propulsion Burnouts . | . . . . . . . . . . . Robots Hopped . | . . . . . . . . . . . Cave-ins Triggered . | . . . . . . . . . . . Exploration Rate (%) 27 | 4 46 47 26 13 4 81 15 15 35 18 Regions Visited 10 Branch Regions 1 Pre-discovered Areas . | . . . . . . . . . . . Known Exits Taken . | . . . . . . . . . . . Unknown Exits Taken 8 | 1 1 1 1 1 . . 1 1 1 . Scrap Searched . | . . . . . . . . . . . Spaces Dug 2 | . . . . . . . 2 . . . Terrain Destroyed 390 | . 5 125 8 48 1 . 9 19 82 93 Melee . | . . . . . . . . . . . Projectile 48 | . . . . 2 1 . 9 13 8 15 AOE 342 | . 5 125 8 46 . . . 6 74 78 Terrain Rammed . | . . . . . . . . . . . Walls Destroyed . | . . . . . . . . . . . Machines Disabled . | . . . . . . . . . . . Actions | -11 -10 -9 -8 -7 -6 -6 -6 -5 -5 -4 --------- Run | Yrd Mat Mat Mat Fac Fac Was Fac Fac Ext Fac Total 5337 | 63 267 637 387 616 161 289 945 835 421 716 Wait 355 | . 26 37 17 66 1 61 63 50 14 20 Move 3999 | 42 189 480 295 510 150 182 725 580 315 531 Hop . | . . . . . . . . . . . Pick Up 148 | 10 15 11 10 2 3 12 20 33 16 16 Fast Attach 62 | . 1 8 1 1 1 2 6 18 6 18 Attach 87 | 7 2 3 2 2 1 5 12 27 15 11 Detach 6 | 1 . 2 . . . . . 2 1 . Swap 62 | . 2 14 6 1 . 1 9 11 3 15 Drop 124 | . 4 22 12 2 2 17 19 22 6 18 Fire 435 | 3 28 59 44 32 3 7 73 59 45 82 Melee 55 | . . . . . . . 18 33 . 4 Ram . | . . . . . . . . . . . Kick . | . . . . . . . . . . . Crush 2 | . . 1 . . . . . . . 1 Escape Stasis . | . . . . . . . . . . . Rewire 2 | . . . . . . 2 . . . . Trap . | . . . . . . . . . . . Miscellaneous . | . . . . . . . . . . . Route ------- -11/Scrapyard -10/Materials (discovered 2 exits: *Mat / [*Min]) -9/Materials (discovered 2 exits: *Mat / [*Min]) -8/Materials -7/Factory -6/Factory -6/Waste -6/Factory -5/Factory (discovered 2 exits: *Fac / *Ext) -5/Extension -4/Factory History --------- Turn | Location | Event 2 | -11/Scrapyard | Met Revision 17 43 | -11/Scrapyard | Discovered new exit (range 16) 66 | -11/Scrapyard | Entered Materials 318 | -10/Materials | Discovered new exit (range 16) 319 | -10/Materials | Build established: Mutant 347 | -10/Materials | Discovered new exit (range 6) 386 | -10/Materials | Entered another Materials area 386 | -9/Materials | Evolved 2 slots: Propulsion x1, Utility x1 736 | -9/Materials | Discovered new exit (range 16) 1186 | -9/Materials | First assault squad dispatched 1409 | -9/Materials | Discovered new exit (range 6) 1417 | -9/Materials | Entered another Materials area 1417 | -8/Materials | Evolved 2 slots: Utility x2 2008 | -8/Materials | Discovered new exit (range 5) 2081 | -8/Materials | Entered Factory 2081 | -7/Factory | Evolved 2 slots: Propulsion x1, Weapon x1 2392 | -7/Factory | Build established: Gunner 2603 | -7/Factory | Discovered new exit (range 15) 3118 | -7/Factory | Entered another Factory area 3118 | -6/Factory | Evolved 2 slots: Utility x2 3385 | -6/Factory | Sucked down chute 3385 | -6/Factory | Entered Waste 3385 | -6/Waste | The area was eerily silent 3560 | -6/Waste | A Compactor rumbled back to life 3565 | -6/Waste | Crushed by Compactor (0 parts destroyed, 2 dropped) 3565 | -6/Waste | Spotted C-40 Crusher 3580 | -6/Waste | Destroyed C-40 Crusher 3705 | -6/Waste | Found Damper Plating 3732 | -6/Waste | Discovered new exit (range 11) 3768 | -6/Waste | Entered Factory 4006 | -6/Factory | Core integrity fell below 50% 4482 | -6/Factory | Build established: Scavenger-Mutant 4854 | -6/Factory | Core integrity fell below 20% 4899 | -6/Factory | Build established: Mutant 5221 | -6/Factory | Discovered new exit (range 5) 5522 | -6/Factory | Entered another Factory area 5522 | -5/Factory | Evolved 2 slots: Utility x2 5571 | -5/Factory | Build established: Tank 5790 | -5/Factory | Lost 8 parts (1p2n2u3w) 5950 | -5/Factory | Discovered new exit (range 15) 6136 | -5/Factory | Lost 5 parts (1p1n2u1w) 6198 | -5/Factory | Noticed a derelict Sapper rigging charges 6222 | -5/Factory | System corruption reached 10% 6257 | -5/Factory | Lost 3 parts (1n2u) 6524 | -5/Factory | Cargo convoy interrupted 6695 | -5/Factory | Discovered new exit (range 9) 6730 | -5/Factory | Core integrity fell below 50% 6773 | -5/Factory | Entered Extension 6800 | -5/Extension | Lost 9 parts (1p2n2u4w) 6842 | -5/Extension | Rescued A7 6999 | -5/Extension | Spotted B-75 Beast 7018 | -5/Extension | Destroyed B-75 Beast 7030 | -5/Extension | Spotted B-75 Beast 7060 | -5/Extension | Destroyed B-75 Beast 7073 | -5/Extension | Disrupted transfer network 7081 | -5/Extension | Lost 4 parts (2n1u1w) 7288 | -5/Extension | System corruption reached 30% 7335 | -5/Extension | Discovered new exit (range 3) 7361 | -5/Extension | Entered Factory 7361 | -4/Factory | Accompanied by 1 ally (A7) 7361 | -4/Factory | Evolved 2 slots: Power x1, Utility x1 7413 | -4/Factory | Build established: Scavenger-Tank 8250 | -4/Factory | Found Unknown Device 8250 | -4/Factory | Identified Heavy Servo Lattice 8354 | -4/Factory | Garrison activated, responded to threat 8397 | -4/Factory | First assault squad dispatched 8441 | -4/Factory | System corruption reached 10% 8483 | -4/Factory | Core integrity fell below 50% 8521 | -4/Factory | Core integrity fell below 20% 8545 | -4/Factory | Destroyed by G-73 Enforcer with Phase Gun Last Messages --------------- 08528_ U-05 Engineer lays Concrete. 08529_ System corrupted: Component data lost. 08529_ Acquired Reflective Plating. 08530_ U-05 Engineer lays Concrete. 08533_ Slug penetrates Garrison Access. 08534_ Garrison Access collapses. 08534_ U-05 Engineer lays Concrete. 08539_ Slug penetrates P-70 Sage. 08540_ C-30 ARC bursts open, deploying its payload. 08540_ G-73 Enforcer unfolds itself. 08540_ G-67 Veteran unfolds itself. 08540_ M-36 Artificer unfolds itself. 08541_ U-05 Engineer lays Concrete. 08541_ U-05 Engineer destroyed. 08541_ Scythe destroyed. 08541_ Lgt. Antimatter Reactor destroyed. 08542_ Slug penetrates P-70 Sage. 08542_ P-70 Sage suffers critical hit (Burn). 08543_ U-05 Engineer lays Concrete. Map ----- +----------------------------------------------------+ | | | | | | | | | | | | | | | | | | | | | | | ?????????????????????????????????????????????????? | | ?????????????????????????????????????????????????? | | ?????????????????##########??????????????????????? | | ??????????????#### #?????????????????????? | | ??????????????? #?????????????????????? | | ???????????????? #?????###?????????????? | | ????????????????? #???? #?????????????? | | ?????????????????# ##### #?????????????? | | ??????????????????# #?????????????? | | ??????????????????# #?????????????? | | ??????????????????# ##????????????? | | ???????????????"??# +????????????? | | ??????????????"""?# #????????????? | | ???????????# """ # +????????????? | | ???????????# """ # !@/ #????????????? | | ???????????# ; ! / #????????????? | | ???????????# ; ! / ###### #????????????? | | ???????????# = + #???????????????????? | | ???????????# ???# # #???????????????????? | | ??????????????????# # !% #???????????????????? | | ??????????????????# # * #???????????????????? | | ??????????????????# =p=g ##??????????????????? | | ??????????????????# ==m u g;#??????????????????? | | ??????????????????# ! b"i%##??????????????????? | | #####+############# # % "[[##??????????????????? | | gg! ##?????##???????????? | | %g ! # ????????????? | | [% % ==# """" ""??????????? | | != *# """" ????????????? | | %% """" ????????????? | | ### ############## # ]*# """" ????????????? | | " # #????????????# #|! # """"?????????????? | | " # #???????????# #%*% # """"?????????????? | | " # #???????????# #=! # """"?????????????? | | " # #???#####???#### # ?????????????? | | + #?? ????# # # ????????????? | | # #?? ?????# # # ????????????? | | # #? """ ?????# # ???????????? | | # #? """ ""???# # #+#####???????????? | +----------------------------------------------------+ Best States ------------- Heat Dissipation 103 Coolant Potential 100 Energy Generation 39 Energy Capacity 525 Matter Stores 300 Matter Capacity 300 Sight Range 16 Robot Scan Range 16 Terrain Scan Range 16 Terrain Scan Density 10 Cloak Strength 2 Base Temperature (-) 150 Armor Coverage 1600 Resistance: KI 20 Resistance: TH 30 Resistance: EM 90 Core Shielding 20 Evasion (%) 55 Targeting Accuracy 10 Melee Accuracy 14 Target Analysis 8 Recoil Reduction 4 Particle Charging 25 Kinecelleration 30 Offensive Hacking 10 Defensive Hacking 14 Item Schematics ----------------- Propulsion Shielding | -10/Materials | Hacked Grenade Launcher | -9/Materials | Scanalyzed Antimatter Reactor | -5/Factory | Scanalyzed Adv. System Shield | -5/Factory | Scanalyzed Arm. Huge Wheel | -5/Factory | Scanalyzed Adv. Melee Analysis Suite | -5/Factory | Scanalyzed Power Sword | -5/Factory | Scanalyzed EMP Blaster | -5/Factory | Scanalyzed Focal Shield | -5/Factory | Scanalyzed Robot Schematics ------------------ None Fabricated ------------ Nothing Alien Tech Used ----------------- None Achievements -------------- Z1$+NX3F=JRE3_ZNQR Challenges ------------ None Game ------ Seed LightpackLaserClaymores Manual? 0 Play Time 03:53:39 Cumulative 169.6 hours Start 2024.03.14 @ 12:39:59 End 2024.03.14 @ 17:04:01 Sessions 1 Manual Loads 0 Difficulty Rogue Special Mode None Game No. 78 Rogue 75 Adventurer 3 Explorer 0 Win Type - Total 0 Types 0/0/0/0/0/0/0/0/0 Lore% 24 Gallery% 45 Achievement% 30 Wizard Run 0 Options --------- Layout 2 ASCII 0 Keyboard 0 Movement Mouse Keybinds 0 Fullscreen 2 Font 24/Smallcaps Map View 50x44 Zoom Use 0% Tactical HUD 1 Map Filters NONE Filters NONE Steam 1 RUN: 2d1cfb57-6167-4c0e-915d-8bfa3d4a482b